{"text_format":"1","workbook":"xlsx","n_sheets":10,"sheets":["Главная-2019","Прил.1-2019","Прил.1-2019-Р.4(1)","Прил.1-2019-Р.4(2)","Прил.1-2019-Р.4(3)","Прил.1-2019-Р.4 (4)","Прил.2-2019","Прил.2_Поясн.зап.-2019","Прил.3-2019","Субъекты"],"not_rendered":{"charts":0,"images":10,"macros":1,"external_links":0,"defined_names":6,"comments":0,"pivot_tables":0},"unopened":[],"bounds":{"document_bytes":16777216,"sheet_cells":100000,"rows_first":2000,"rows_last":500,"rows_between":2000,"halvings":0,"cell_chars":16384,"cell_head_chars":4096},"cells_cut":0,"cells_raw":0,"read":"whole","date_system":"1900"}

{"sheet":"Главная-2019","index":0,"n_rows":25,"n_cols":9,"rows_kept":25,"cut":false,"hidden":false,"merged":[[3,1,3,7],[4,0,4,8],[6,8,7,8],[6,0,7,0],[6,1,7,1],[6,2,6,3],[6,4,6,5],[6,6,6,7],[0,4,0,8],[23,2,23,3],[20,2,20,3],[18,2,18,3],[18,5,18,6],[20,5,20,6],[22,5,22,6],[23,5,23,6],[22,2,22,3],[19,2,19,3],[19,5,19,6],[21,2,21,3],[21,5,21,6],[12,0,12,8],[1,4,1,8],[2,0,2,8]]}
[]
[]
["Бюджетная заявка на предоставление материально-технических ресурсов, приобретаемых за счет средств федерального бюджета в 2019 году \nв рамках реализации мероприятий федеральной целевой программы\n\"Повышение безопасности дорожного движения в 2013-2020 годах\""]
["Субъект Российской Федерации:  ","Наименование субъекта РФ"]
["Бюджетная заявка на ассигнования из федерального бюджета на 2019 год"]
[]
["Наименование расходов и источников финансирования","Единица\nизмерения","Бюджетная заявка на поставки МТР за счет средств федерального бюджета",null,"Планируемые ассигнования субъектов Российской Федерации за счет регионального бюджета и местных бюджетов субъекта РФ",null,"Планируемые ассигнования субъектов Российской Федерации за счет внебюджетных средств",null,"% планового финансирования из регионального бюджета и внебюджетных источников по отношению к соответствующему мероприятию ФЦП"]
[null,null,"Количество","Сумма","Количество","Сумма","Количество","Сумма"]
[1,{"$f":"A9+1","v":2},{"$f":"B9+1","v":3},4,5,6,7,8,{"$f":"H9+1","v":9}]
["I. Объем поставок МТР за счет средств федерального бюджета",null,"-",{"$f":"D11","v":0},"-",{"$f":"F11","v":0},"-",{"$f":"H11","v":0}]
["Прочие нужды",null,"-",{"$f":"SUM(D14:D16)","v":0},"-",{"$f":"SUM(F14:F16)","v":0},"-",{"$f":"SUM(H14:H16)","v":0}]
["II. Обоснование ассигнований на реализацию программы в том числе :     "]
["Прочие нужды"]
["5/7 \"Оснащение участков улично-дорожной сети городов и населенных пунктов пешеходными ограждениями, в том числе в зоне пешеходных переходов (не менее 809 км)\" на 2019 год (Приложение 1)","пог.метр",{"$f":"'Прил.1-2019'!$D$30","v":0},{"$f":"'Прил.1-2019'!F30","v":0},null,null,null,null,{"$f":"F14/D14","v":{"$error":"#DIV/0!"}}]
["5/8 \"Модернизация нерегулируемых пешеходных переходов, в том числе прилегающих непосредственно к дошкольным образовательным организациям, общеобразовательным организациям и организациям дополнительного образования, средствами  освещения, искусственными дорожными неровностями, светофорами Т.7, системами светового оповещения, дорожными знаками с внутренним освещением и светодиодной индикацией, Г-образными опорами, дорожной разметкой, в том числе с применением штучных форм и цветных дорожных покрытий, световозвращателями и индикаторами, а также устройствами дополнительного освещения и другими элементами повышения безопасности дорожного движения (не менее 2427 переходов)\" на 2019 год (Приложение 2)","пешеход-ный переход",{"$f":"'Прил.2-2019'!$C$37","v":0},{"$f":"'Прил.2-2019'!$H$37","v":0},null,null,null,null,{"$error":"#DIV/0!"}]
["5/9 \"Модернизация светофорных объектов (не менее 2874)\" на 2019 год (Приложение 3)","объект",{"$f":"'Прил.3-2019'!$Q$36","v":0},{"$f":"'Прил.3-2019'!$Q$38","v":0},null,null,null,null,{"$error":"#DIV/0!"}]
[]
[]
[]
["(Должность)",null,"(Подпись)",null,null,"(Инициалы, фамилия)"]
[]
["(Должность исполнителя)",null,"(Подпись)",null,null,"(Инициалы, фамилия)"]
[]
[null,null,"(контактный телефон)",null,null,"(электронная почта)"]
["«____» __________________ 20___  г."]

{"sheet":"Прил.1-2019","index":1,"n_rows":55,"n_cols":16,"rows_kept":55,"cut":false,"hidden":false,"merged":[[36,0,36,15],[42,1,42,2],[42,3,42,5],[42,6,42,8],[42,9,42,11],[42,12,42,13],[42,14,42,15],[41,3,41,5],[41,6,41,8],[41,9,41,11],[41,12,41,13],[40,3,40,5],[40,6,40,8],[40,9,40,11],[32,14,32,15],[33,14,33,15],[34,14,34,15],[35,14,35,15],[30,0,30,15],[35,12,35,13],[38,6,38,8],[38,9,38,11],[38,12,38,13],[38,14,38,15],[40,12,40,13],[32,9,32,11],[33,9,33,11],[34,9,34,11],[35,9,35,11],[32,12,32,13],[33,12,33,13],[34,12,34,13],[46,0,46,15],[44,0,44,15],[45,0,45,15],[5,10,5,15],[6,10,6,12],[6,13,6,15],[37,0,37,15],[34,3,34,5],[35,3,35,5],[32,3,32,5],[33,3,33,5],[31,14,31,15],[31,12,31,13],[31,3,31,5],[31,9,31,11],[31,6,31,8],[32,6,32,8],[33,6,33,8],[34,6,34,8],[35,6,35,8],[0,3,0,15],[5,4,7,4],[3,0,3,15],[5,0,7,0],[5,1,7,1],[5,3,7,3],[5,5,7,5],[5,6,7,6],[5,8,7,8],[5,9,7,9],[5,2,7,2],[5,7,7,7],[53,0,53,1],[53,10,53,15],[53,4,53,6],[54,4,54,6],[49,10,50,15],[51,10,51,15],[49,0,50,4],[51,0,51,4],[49,6,50,8],[51,6,51,8],[54,0,54,1],[38,1,38,2],[39,1,39,2],[40,1,40,2],[41,1,41,2],[39,3,39,5],[38,3,38,5],[39,6,39,8],[39,9,39,11],[39,12,39,13],[39,14,39,15],[41,14,41,15],[40,14,40,15],[32,1,32,2],[33,1,33,2],[34,1,34,2],[35,1,35,2],[31,1,31,2]]}
[{"$f":"'Главная-2019'!B4","v":"Наименование субъекта РФ"},null,null,"ПРИЛОЖЕНИЕ № 1 к бюджетной заявке «Оснащение пешеходными ограждениями»"]
[]
[]
["Заявка на выделение МТР в рамках ФЦП «Повышение безопасности дорожного движения в 2013-2020 годах»\nпо мероприятию № 5/7 \"Оснащение участков улично-дорожной сети городов и населенных пунктов пешеходными ограждениями, \nв том числе в зоне пешеходных переходов (не менее 809 км)»\nна 2019 год"]
["1. Адресный перечень"]
["№","Место (адрес) установки  пешеходных ограждений1 (населенный пункт, дорога, километр, пикет, улица и т.д, как указано в документации на дорогу)","Номер типового решения","Длина пешеходного ограждения2, п. м.","Предварительная цена за 1 п. метр, тыс. руб.","Предварительная сумма,\nтыс. руб.","Номер организации балансодержателя (в соответствии с разделом 2 настоящего приложения) ","Номер организации, осуществляющей технический надзор (в соответствии с разделом 3 настоящего приложения) ","Наличие ранее установленных ограждений по данному адресу (да/нет)","Наличие согласования с владельцем улично-дорожной сети (да/нет)","Сведения об аварийности"]
[null,null,null,null,null,null,null,null,null,null,"2016 г.",null,null,"2017 г."]
[null,null,null,null,null,null,null,null,null,null," ДТП ","Погибло","Ранено"," ДТП ","Погибло","Ранено"]
[1,2,3,4,5,6,7,8,9,10,11,12,13,14,15,16]
[1,null,null,null,null,{"$f":"D10*E10","v":0}]
[2,null,null,null,null,0]
[3,null,null,null,null,0]
[4,null,null,null,null,0]
[5,null,null,null,null,0]
[6,null,null,null,null,0]
[7,null,null,null,null,0]
[8,null,null,null,null,0]
[9,null,null,null,null,0]
[10,null,null,null,null,0]
[11,null,null,null,null,0]
[12,null,null,null,null,0]
[13,null,null,null,null,0]
[14,null,null,null,null,0]
[15,null,null,null,null,0]
[16,null,null,null,null,0]
[17,null,null,null,null,0]
[18,null,null,null,null,0]
[19,null,null,null,null,0]
[null,null,null,null,null,0]
[null,"ИТОГО:",null,{"$f":"SUM(D10:D29)","v":0},null,{"$f":"SUM(F10:F29)","v":0}]
["2. Организации-балансодержатели улично-дорожной сети (заполнение обязательно):"]
["№","Наименование",null,"Должность, Ф.И.О. руководителя",null,null,"Юридический адрес",null,null,"Почтовый адрес",null,null,"Телефон, факс",null,"Адрес электронной почты"]
[1]
[2]
[3]
[4]
["Справки о балансодержателях улично-дорожной сети которые будут принимать на баланс затраты на имущество прилагаются к бюджетной заявке"]
["3. Организации, которые по договору с ФКУ «Дирекция Программы ПБДД» на безвозмездной основе будут осуществлять технический надзор (заполнение обязательно):\n"]
["№","Наименование",null,"Должность, Ф.И.О. руководителя",null,null,"Юридический адрес",null,null,"Почтовый адрес",null,null,"Телефон, факс",null,"Адрес электронной почты"]
[1]
[2]
[3]
[4]
[]
["1 Конструктивно ограждения выполняются из секций, сваренных из металлопроката (не литье) с покрытием, нанесенным методом горячего цинкования. Типовые решения (эскизы пешеходных ограждений) приведены в разделе 4."]
["2 Указывается длина только самого ограждения, за вычетом всех разрывов."]
[]
[]
[]
[]
[]
["(должность составителя заявки)",null,null,null,null,null,"(подпись)",null,null,null,"(инициалы, фамилия)"]
[]
[null,null,null,null,null,null,null,null,null,null,"«____» ________________ 20___ г."]
["(контактный телефон)",null,null,null,"электронная почта"]

{"sheet":"Прил.1-2019-Р.4(1)","index":2,"n_rows":1,"n_cols":1,"rows_kept":1,"cut":false,"hidden":false,"merged":[[0,0,0,11]]}
["Эскизы пешеходных ограждений (типовые решения)"]

{"sheet":"Прил.1-2019-Р.4(2)","index":3,"n_rows":0,"n_cols":0,"rows_kept":0,"cut":false,"hidden":false,"merged":[]}

{"sheet":"Прил.1-2019-Р.4(3)","index":4,"n_rows":0,"n_cols":0,"rows_kept":0,"cut":false,"hidden":false,"merged":[]}

{"sheet":"Прил.1-2019-Р.4 (4)","index":5,"n_rows":18,"n_cols":19,"rows_kept":18,"cut":false,"hidden":false,"merged":[]}
[]
[]
[null,null,null,null,null,"Чертеж пешеходного ограждения (типовое решение № 4)",null,null,null,null,null,null,null,null,"\"Согласовано\""]
[]
[null,null,null,null,null,null,null,null,null,null,null,null,null,null,"_________________________________________________________"]
[]
[null,null,null,null,null,null,null,null,null,null,null,null,null,null,"_________________________________________________________"]
[]
[null,null,null,null,null,null,null,null,null,null,null,null,null,null,"_________________________________________________________"]
[]
[null,null,null,null,null,null,null,null,null,null,null,null,null,null,"_________________________________________________________"]
[]
[]
[]
[]
[null,null,null,null,null,null,null,null,null,null,null,null,null,null,"_________________________________________________________"]
[]
[null,null,null,null,null,null,null,null,null,null,null,null,null,null,null,null,null,null,"МП"]

{"sheet":"Прил.2-2019","index":6,"n_rows":59,"n_cols":16,"rows_kept":59,"cut":false,"hidden":false,"merged":[[55,10,55,14],[51,7,51,8],[51,9,51,10],[51,11,51,12],[51,13,51,15],[39,0,39,15],[44,2,44,6],[47,7,47,8],[47,9,47,10],[47,11,47,12],[41,9,41,10],[42,9,42,10],[43,9,43,10],[44,9,44,10],[41,11,41,12],[42,11,42,12],[43,11,43,12],[44,11,44,12],[41,7,41,8],[42,7,42,8],[43,7,43,8],[2,0,2,14],[4,10,4,15],[5,10,5,12],[5,13,5,15],[4,0,6,0],[4,1,6,1],[4,8,6,8],[4,9,6,9],[4,3,6,3],[4,4,6,4],[4,5,6,5],[58,0,58,2],[46,0,46,14],[54,9,54,14],[57,11,57,13],[56,0,56,2],[48,7,48,8],[48,9,48,10],[48,11,48,12],[49,7,49,8],[49,9,49,10],[49,11,49,12],[55,0,55,2],[54,0,54,2],[57,0,57,2],[50,7,50,8],[50,9,50,10],[0,2,1,14],[40,13,40,15],[41,13,41,15],[42,13,42,15],[43,13,43,15],[40,2,40,6],[41,2,41,6],[42,2,42,6],[43,2,43,6],[4,6,6,6],[38,0,38,14],[4,7,6,7],[4,2,6,2],[40,11,40,12],[40,9,40,10],[40,7,40,8],[51,2,51,6],[47,2,47,6],[44,13,44,15],[47,13,47,15],[48,13,48,15],[49,13,49,15],[50,13,50,15],[45,0,45,15],[48,2,48,6],[49,2,49,6],[50,2,50,6],[44,7,44,8],[50,11,50,12]]}
[{"$f":"'Главная-2019'!B4","v":"Наименование субъекта РФ"},null,"ПРИЛОЖЕНИЕ № 2 к бюджетной заявке\n«Модернизация нерегулируемых пешеходных переходов»"]
[]
["Заявка на выделение МТР в рамках ФЦП «Повышение безопасности дорожного движения в 2013-2020 годах»\nпо мероприятию № 5/8 «Модернизация нерегулируемых пешеходных переходов, в том числе прилегающих непосредственно к дошкольным образовательным организациям, общеобразовательным организациям и организациям дополнительного образования, средствами  освещения, искусственными дорожными неровностями, светофорами Т.7, системами светового оповещения, дорожными знаками с внутренним освещением и светодиодной индикацией, Г-образными опорами, дорожной разметкой, в том числе с применением штучных форм и цветных дорожных покрытий, световозвращателями и индикаторами, а также устройствами дополнительного освещения и другими элементами повышения безопасности дорожного движения (не менее 2427 переходов)»\n на 2019 год"]
["1. Адресный перечень"]
["№ п/п","Место расположения пешеходного перехода (нас. пункт, улица, № дома или иные ориентиры)1","Номер типового решения","Ширина проезжей части, метров","Наличие/\nотсутствие искусствен-ного освещения (да/нет)","Наличие подключения к существу-ющей электри-ческой сети 220В (да/нет)","Дата создания объекта/ Последняя дата модернизации объекта","Стоимость, тыс. руб.","Номер организации-балансодер-жателя (в соответствии с разделом 2 настоящего приложения)","Номер организации, осуществляющей технический надзор (в соответствии с разделом 3 настоящего приложения)","Сведения об аварийности"]
[null,null,null,null,null,null,null,null,null,null,"2016 год",null,null,"2017 год"]
[null,null,null,null,null,null,null,null,null,null,"ДТП","погибло","ранено","ДТП","погибло","ранено"]
[1,2,3,4,5,6,7,8,9,10,11,12,13,14,15,16]
[1]
[2]
[3]
[4]
[5]
[6]
[7]
[8]
[9]
[10]
[11]
[12]
[13]
[14]
[15]
[16]
[17]
[18]
[19]
[20]
[21]
[22]
[23]
[24]
[25]
[26]
[27]
[]
[null,"ВСЕГО:",{"$f":"COUNTA(C9:C36)","v":0},null,null,null,null,{"$f":"SUM(H9:H36)","v":0}]
[]
["1Для каждого пешеходного перехода выбирается типовое решение, в соответствии с пояснительной запиской к приложению № 4. \nПешеходный переход должен располагаться на территории города (населенного пункта).\nВозможность подключения к электрической сети обеспечивается владельцем улично-дорожной сети.\n"]
["2. Организации-балансодержатели объектов (заполнение обязательно):"]
["№ п.","Наименование","Должность, Ф.И.О. руководителя",null,null,null,null,"Юридический адрес",null,"Почтовый адрес",null,"Телефон, факс",null,"Адрес электронной почты"]
[1]
[2]
[3]
[4]
["Справки о балансодержателях объектов которые будут принимать на баланс затраты на имущество прилагаются к бюджетной заявке"]
["3. Организации, которые по договору с ФКУ «Дирекция Программы ПБДД» на безвозмездной основе будут осуществлять технический надзор (заполнение обязательно):"]
["№ п.","Наименование","Должность, Ф.И.О. руководителя",null,null,null,null,"Юридический адрес",null,"Почтовый адрес",null,"Телефон, факс",null,"Адрес электронной почты"]
[1]
[2]
[3]
[4]
[]
[]
["(должность)",null,null,null,null,null,null,"(Подпись)",null,"(инициалы, фамилия)"]
[]
["(должность составителя заявки)",null,null,null,null,null,null,"(Подпись)",null,null,null,null,"(инициалы, фамилия)"]
[null,null,null,null,null,null,null,null,null,null,null,"«____» ____________ 20___ г."]
["(контактный телефон)",null,null,null,null,null,null,"(Электронная почта)"]

{"sheet":"Прил.2_Поясн.зап.-2019","index":7,"n_rows":128,"n_cols":7,"rows_kept":128,"cut":false,"hidden":false,"merged":[[97,0,97,5],[98,0,99,6]]}
["Пояснительная записка к Приложению № 4"]
["№ поз.","Номер типового решения, наименование используемых технических средств1","Ед. изм.","Кол-во","Примерная цена с учетом цен производителей и стоимости монтажа,\nтыс. руб.","Стоимость, тыс. руб.","Схема"]
[null,"Типовое решение 1"]
[1,"Дорожный знак 5.19.1 на щите с флуоресцентной основой","шт.",2,null,{"$f":"IF(E4=\"\",0,D4*E4)","v":0}]
[2,"Дорожный знак 5.19.2 на щите с флуоресцентной основой","шт.",2,null,{"$f":"IF(E5=\"\",0,D5*E5)","v":0}]
[3,"Дорожный знак 1.22 на щите с флуоресцентной основой и светодиодной индикацией (4 автономных индикатора на каждом знаке) ","шт.",2,null,{"$f":"IF(E6=\"\",0,D6*E6)","v":0}]
[4,"Стойка знака, оцинкованная, d = 76 мм, h = 4,0 м","шт.",4,null,{"$f":"IF(E7=\"\",0,D7*E7)","v":0}]
[5,"Разметка дорожная 1.14.1 из термопластика, нанесенная на дорожное покрытие желтого цвета",null,null,null,{"$f":"E8","v":0}]
[6,"Разметка дорожная 1.24.1, дублирующая дорожный знак 1.22 (штучные формы)","шт.",2,null,{"$f":"IF(E9=\"\",0,D9*E9)","v":0}]
[7,"Светофор светодиодный типа Т.7 с подключением к сети 220В со встроенной АКБ для работы в режиме 24 ч/сутки","шт.",4,null,{"$f":"IF(E10=\"\",0,D10*E10)","v":0}]
[null,"ВСЕГО:",null,{"$f":"SUM(D4:D10)","v":16},null,{"$f":"SUM(F4:F10)","v":0}]
[]
[]
[]
[]
[null,"Типовое решение 2"]
[1,"Дорожный знак 5.19.1 (2) двусторонний с внутренней подсветкой от сети 220В, работающий в темное время суток, с флуоресцентной окантовкой","шт.",2,null,{"$f":"IF(E17=\"\",0,D17*E17)","v":0}]
[2,"Дорожный знак 1.22 на щите с флуоресцентной основой и светодиодной индикацией","шт.",2,null,{"$f":"IF(E18=\"\",0,D18*E18)","v":0}]
[3,"Стойка знака, оцинкованная, d = 76 мм, h = 4,0 м","шт.",4,null,{"$f":"IF(E19=\"\",0,D19*E19)","v":0}]
[4,"Разметка дорожная 1.14.1 из термопластика, нанесенная на дорожное покрытие желтого цвета",null,null,null,{"$f":"E20","v":0}]
[5,"Разметка дорожная 1.24.1, дублирующая дорожный знак 1.22","шт.",2,null,{"$f":"IF(E21=\"\",0,D21*E21)","v":0}]
[null,"ВСЕГО:",null,{"$f":"SUM(D17:D21)","v":10},null,{"$f":"SUM(F17:F21)","v":0}]
[]
[]
[null,"Типовое решение 3"]
[1,"Дорожный знак 5.19.1 на щите с флуоресцентной основой ","шт.",2,null,{"$f":"IF(E26=\"\",0,D26*E26)","v":0}]
[2,"Дорожный знак 5.19.2 на щите с флуоресцентной основой","шт.",2,null,0]
[3,"Дорожный знак 1.22 на щите с флуоресцентной основой","шт.",2,null,0]
[4,"Дорожный знак 1.17 на щите с флуоресцентной основой","шт.",2,null,0]
[5,"Дорожный знак 3.24 на щите с флуоресцентной основой","шт.",4,null,0]
[6,"Дорожный знак 3.25","шт.",2,null,0]
[7,"Дорожный знак 5.20","шт.",4,null,0]
[8,"Дорожный знак 8.2.1","шт.",2]
[9,"Стойка знака, оцинкованная, d = 76 мм, h = 4,0 м","шт.",12,null,0]
[10,"Светофор светодиодный типа Т.7 с подключением к сети 220В со встроенной АКБ для работы в режиме 24 ч/сутки","шт.",4,null,0]
[11,"Разметка дорожная 1.14.1 из термопластика, нанесенная на дорожное покрытие желтого цвета",null,null,null,{"$f":"E36","v":0}]
[12,"Разметка дорожная 1.24.1, дублирующая дорожный знак 1.22","шт.",2,null,{"$f":"IF(E37=\"\",0,D37*E37)","v":0}]
[13,"Разметка дорожная 1.24.2, дублирующая дорожный знак 3.24","шт.",4,null,{"$f":"IF(E38=\"\",0,D38*E38)","v":0}]
[14,"Искусственная дорожная неровность с разметкой дорожной 1.25","шт.",1,null,{"$f":"IF(E39=\"\",0,D39*E39)","v":0}]
[null,"ВСЕГО:",null,{"$f":"SUM(D26:D39)","v":43},null,{"$f":"SUM(F26:F39)","v":0}]
[]
[]
[]
[null,"Типовое решение 4"]
[1,"Дорожный знак 5.19.1 (2) двусторонний с внутренней подсветкой от сети 220В, работающий в темное время суток, с флуоресцентной окантовкой","шт.",2,null,{"$f":"D45*E45","v":0}]
[2,"Дорожный знак 1.22 на щите с флуоресцентной основой","шт.",2,null,0]
[3,"Дорожный знак 1.17 на щите с флуоресцентной основой","шт.",2,null,0]
[4,"Дорожный знак 3.24 на щите с флуоресцентной основой","шт.",4,null,0]
[5,"Дорожный знак 3.25","шт.",2,null,0]
[null,"Дорожный знак 5.20",null,4,null,0]
[6,"Дорожный знак 8.2.1","шт.",2,null,0]
[7,"Стойка знака, оцинкованная, d = 76 мм, h = 4,0 м","шт.",12,null,{"$f":"IF(E52=\"\",0,D52*E52)","v":0}]
[8,"Разметка дорожная 1.14.1 из термопластика, нанесенная на дорожное покрытие желтого цвета",null,null,null,{"$f":"E53","v":0}]
[9,"Разметка дорожная 1.24.1, дублирующая дорожный знак 1.22","шт.",2,null,0]
[10,"Разметка дорожная 1.24.2, дублирующая дорожный знак 3.24","шт.",4,null,0]
[11,"Искусственная дорожная неровность с разметкой дорожной 1.25","шт.",1,null,0]
[null,"ВСЕГО:",null,{"$f":"SUM(D45:D56)","v":37},null,{"$f":"SUM(F45:F56)","v":0}]
[null,"Типовое решение 5А"]
[1,"Дорожный знак 5.19.1 на щите с флуоресцентной основой  ","шт.",2,null,{"$f":"D59*E59","v":0}]
[2,"Дорожный знак 5.19.2 на щите с флуоресцентной основой ","шт.",2,null,0]
[3,"Дорожный знак 1.23 на щите с флуоресцентной основой ","шт.",4,null,0]
[4,"Дорожный знак 1.17 на щите с флуоресцентной основой ","шт.",2,null,0]
[5,"Дорожный знак 3.24 на щите с флуоресцентной основой ","шт.",4,null,0]
[6,"Дорожный знак 3.25 ","шт.",2,null,0]
[7,"Дорожный знак 5.20 ","шт.",4,null,0]
[8,"Дорожный знак 8.2.1 ","шт.",4,null,0]
[9,"Стойка знака, оцинкованная, d=76 мм, h=4,0 м ","шт.",6,null,0]
[10,"Стойка знака, оцинкованная, d=76 мм, h=5,0 м ","шт.",6,null,0]
[11,"Г-образная опора ","шт.",2,null,0]
[12,"Светофор светодиодный типа Т.7 с подключением к сети 220В  ","шт.",4,null,0]
[13,"Разметка дорожная 1.14.1 из термопластика, нанесенная на дорожное покрытие желтого цвета ",null,null,null,0]
[14,"Разметка дорожная 1.24.1, дублирующая дорожный знак 1.23 ","шт.",2,null,{"$f":"E72","v":0}]
[15,"Разметка дорожная 1.24.2, дублирующая дорожный знак 3.24 ","шт.",4,null,0]
[16,"Разметка дорожная: надпись \"ДЕТИ\" или \"ШКОЛА\" ","шт.",2,null,0]
[17,"Ограничивающие пешеходные ограждения ","п.м.",200,null,0]
[18,"Искусственная дорожная неровность с разметкой дорожной 1.25 ","шт.",1,null,0]
[null,"ВСЕГО:",null,{"$f":"SUM(D59:D74)+D76+1","v":52},null,{"$f":"SUM(F59:F76)","v":0}]
[null,"Типовое решение 5Б"]
[1,"Дорожный знак 1.23 на щите с флуоресцентной основой и светодиодной индикацией ","шт. ",4,null,{"$f":"D79*E79","v":0}]
[2,"Дорожный знак 5.19.1 (2) двусторонний с внутренней подсветкой от сети 220В, работающий в темное время суток, с флуоресцентной окантовкой","шт. ",2,null,0]
[3,"Дорожный знак 1.17 на щите с флуоресцентной основой ","шт. ",2,null,0]
[4,"Дорожный знак 3.24 на щите с флуоресцентной основой ","шт. ",4,null,{"$f":"D81*E82","v":0}]
[5,"Дорожный знак 3.25 ","шт. ",2,null,0]
[6,"Дорожный знак 5.20 ","шт. ",4,null,0]
[7,"Дорожный знак 8.2.1 ","шт. ",4,null,0]
[8,"Стойка знака, оцинкованная, d=76 мм, h=4,0 м ","шт. ",6,null,0]
[9,"Стойка знака, оцинкованная, d=76 мм, h=5,0 м ","шт. ",6,null,0]
[10,"Г-образная опора ","шт. ",2,null,0]
[11,"Светофор светодиодный типа Т.7 с подключением к сети 220В ","шт. ",4,null,0]
[12,"Разметка дорожная 1.14.1 из термопластика, нанесенная на дорожное покрытие желтого цвета ",null,null,null,0]
[13,"Разметка дорожная 1.24.1, дублирующая дорожный знак 1.23 ","шт. ",2,null,0]
[14,"Разметка дорожная 1.24.2, дублирующая дорожный знак 3.24 ","шт. ",4,null,{"$f":"E92","v":0}]
[15,"Разметка дорожная: надпись \"ДЕТИ\" или \"ШКОЛА\" ","шт. ",2,null,{"$f":"D92*E93","v":0}]
[16,"Ограничивающие пешеходные ограждения ","п.м. ",200,null,{"$f":"D93*E94","v":0}]
[17,"Искусственная дорожная неровность с разметкой дорожной 1.25 ","шт. ",1,null,{"$f":"D94*E95","v":0}]
[null,"ВСЕГО:",null,{"$f":"SUM(D79:D93, D95)+1","v":50},null,{"$f":"SUM(F79:F95)","v":0}]
[]
["      Примечание:  \n"]
["1 Предлагаемые к применению технические средства организации дорожного движения должны иметь техническую документацию, согласованную  в установленном порядке.\n   Типоразмеры дорожных знаков должны соответствовать требованиям п. 5.1.16. ГОСТ Р 52289-2004."]
[]
["2 Ограничивающие пешеходные ограждения поставляются в следующем виде:"]
[]
[]
[]
[]
[]
[]
[]
[]
[]
[]
[]
[]
[]
[]
[]
[]
[]
[]
[]
[]
[]
[null,"1 - Стойка ограждения"]
[null,"2 - Опорная плита стойки"]
[null,"3 - Труба секции"]
[null,"4 - Кольцо-вставка"]
[null,"L - Шаг стоек: 1,0 - 2,0 м"]
[null,"Н - Высота ограждения"]

{"sheet":"Прил.3-2019","index":8,"n_rows":101,"n_cols":25,"rows_kept":101,"cut":false,"hidden":false,"merged":[[39,14,39,15],[40,14,43,15],[44,14,47,15],[48,14,51,15],[48,9,51,11],[71,16,74,17],[40,12,43,13],[44,12,47,13],[48,12,51,13],[63,9,66,11],[67,9,70,11],[71,9,74,11],[63,12,66,13],[67,12,70,13],[71,12,74,13],[63,14,66,15],[60,0,60,17],[40,0,43,0],[44,0,47,0],[48,0,51,0],[52,0,55,0],[56,0,59,0],[44,3,47,5],[48,3,51,5],[38,0,38,17],[67,14,70,15],[71,14,74,15],[75,14,78,15],[79,14,82,15],[75,16,78,17],[79,16,82,17],[44,1,47,1],[63,3,66,5],[67,3,70,5],[71,3,74,5],[75,3,78,5],[79,3,82,5],[63,6,66,8],[67,6,70,8],[39,16,39,17],[40,16,43,17],[44,16,47,17],[48,16,51,17],[52,16,55,17],[56,16,59,17],[63,16,66,17],[67,16,70,17],[39,9,39,11],[1,0,1,23],[3,0,9,0],[3,1,8,1],[3,3,9,3],[3,4,5,16],[3,19,3,24],[4,19,4,24],[6,19,9,19],[6,20,9,20],[6,21,9,21],[6,22,9,22],[6,23,9,23],[6,24,9,24],[2,0,2,5],[9,4,9,14],[5,19,5,21],[3,2,9,2],[0,3,0,24],[62,9,62,11],[62,12,62,13],[62,14,62,15],[62,16,62,17],[3,17,9,17],[3,18,9,18],[7,4,7,16],[52,9,55,11],[56,9,59,11],[52,12,55,13],[56,12,59,13],[62,3,62,5],[62,6,62,8],[39,12,39,13],[40,9,43,11],[44,9,47,11],[39,6,39,8],[40,6,43,8],[44,6,47,8],[5,22,5,24],[48,6,51,8],[39,3,39,5],[40,3,43,5],[52,3,55,5],[56,3,59,5],[48,1,51,1],[39,1,39,2],[56,1,59,2],[40,1,43,2],[75,6,78,8],[79,6,82,8],[52,6,55,8],[56,6,59,8],[52,1,55,1],[61,0,61,17],[63,0,66,0],[67,0,70,0],[71,0,74,0],[52,14,55,15],[56,14,59,15],[75,0,78,0],[79,0,82,0],[75,9,78,11],[79,9,82,11],[75,12,78,13],[79,12,82,13],[62,1,62,2],[63,1,66,2],[67,1,70,2],[71,1,74,2],[79,1,82,2],[75,1,78,2],[100,17,100,24],[93,0,93,7],[94,0,94,7],[96,0,96,7],[97,0,97,7],[93,11,93,14],[94,11,94,14],[96,11,96,14],[97,11,97,14],[99,17,99,24],[93,17,93,24],[94,17,94,24],[96,17,96,24],[97,17,97,24],[100,11,100,14],[99,11,99,14],[99,0,99,1],[71,6,74,8]]}
[{"$f":"'Главная-2019'!B4","v":"Наименование субъекта РФ"},null,null,"ПРИЛОЖЕНИЕ № 3 к бюджетной заявке «Модернизация светофорных объектов»"]
["Заявка на выделение МТР в рамках ФЦП «Повышение безопасности дорожного движения в 2013-2020 годах»\nпо мероприятию № 5/9 «Модернизация светофорных объектов (не менее 2874)» \nна 2019 год"]
["1. Модернизация светофорных объектов"]
["№\nп/п","Место  (адрес) расположения светофорного объекта1 (населенный пункт, улицы)","Наличие согласованной и утвержденной проектно-сметной документации (да/нет)","Дата создания объекта/ Последняя дата модернизации объекта","Наименование оборудования:",null,null,null,null,null,null,null,null,null,null,null,null,"Номер организации-балансодержателя 3","Номер организации, осуществляющей технический надзор 4","Характеристика места установки"]
[null,null,null,null,null,null,null,null,null,null,null,null,null,null,null,null,null,null,null,"Сведения об аварийности"]
[null,null,null,null,null,null,null,null,null,null,null,null,null,null,null,null,null,null,null,"2016 г.",null,null,"2017 г."]
[null,null,null,null,"Светофор транспортный\n(светодиодный) Т 1.2, шт.","Светофор транспортный\n(светодиодный) Т 1.2 п, шт.","Светофор транспортный\n(светодиодный) Т 1.2 л, шт.","Светофор пешеходный\n(светодиодный) П 1.1, шт.","Светофор транспортный\n(светодиодный) Т 1.2\nс табло обратного отсчёта времени, шт.","Светофор транспортный\n(светодиодный) Т 1.2 п\nс табло обратного отсчёта времени, шт.","Светофор транспортный\n(светодиодный) Т 1.2 л\nс табло обратного отсчёта времени, шт.","Светофор пешеходный\n(светодиодный) П 1.1\nс табло обратного отсчёта времени, шт.","Устройство звукового сопровождения пешехода, шт.","Табло обратного отсчёта времени, шт.","Контроллер дорожный, шт.","Предпочтительная марка контроллера"," ИТОГО, тыс. руб.",null,null," ДТП ","Погибло","Ранено"," ДТП ","Погибло","Ранено"]
[null,null,null,null,"Стоимость оборудования с учетом цен производителей и монтажа2, тыс.руб."]
[null,null,null,null,null,null,null,null,null,null,null,null,null,null,null,"-","-"]
[null,"Населенный пункт, название улицы 1 – название улицы 2",null,null,"Требуемое количество, шт."]
[1,2,3,4,5,6,7,8,9,10,11,12,13,14,15,16,17,18,19,20,21,22,23,24,25]
[1,null,null,null,null,null,null,null,null,null,null,null,null,null,null,null,{"$f":"E$9*E12+F$9*F12+G$9*G12+H$9*H12+I12*I$9+J12*J$9+K12*K$9+L$9*L12+M$9*M12+N$9*N12+O$9*O12","v":0}]
[2,null,null,null,null,null,null,null,null,null,null,null,null,null,null,null,{"$f":"E$9*E13+F$9*F13+G$9*G13+H$9*H13+I13*I$9+J13*J$9+K13*K$9+L$9*L13+M$9*M13+N$9*N13+O$9*O13","v":0}]
[3,null,null,null,null,null,null,null,null,null,null,null,null,null,null,null,{"$f":"E$9*E14+F$9*F14+G$9*G14+H$9*H14+I14*I$9+J14*J$9+K14*K$9+L$9*L14+M$9*M14+N$9*N14+O$9*O14","v":0}]
[4,null,null,null,null,null,null,null,null,null,null,null,null,null,null,null,0]
[5,null,null,null,null,null,null,null,null,null,null,null,null,null,null,null,0]
[6,null,null,null,null,null,null,null,null,null,null,null,null,null,null,null,0]
[7,null,null,null,null,null,null,null,null,null,null,null,null,null,null,null,0]
[8,null,null,null,null,null,null,null,null,null,null,null,null,null,null,null,0]
[9,null,null,null,null,null,null,null,null,null,null,null,null,null,null,null,0]
[10,null,null,null,null,null,null,null,null,null,null,null,null,null,null,null,0]
[11,null,null,null,null,null,null,null,null,null,null,null,null,null,null,null,0]
[12,null,null,null,null,null,null,null,null,null,null,null,null,null,null,null,0]
[13,null,null,null,null,null,null,null,null,null,null,null,null,null,null,null,0]
[14,null,null,null,null,null,null,null,null,null,null,null,null,null,null,null,0]
[15,null,null,null,null,null,null,null,null,null,null,null,null,null,null,null,0]
[16,null,null,null,null,null,null,null,null,null,null,null,null,null,null,null,0]
[17,null,null,null,null,null,null,null,null,null,null,null,null,null,null,null,0]
[18,null,null,null,null,null,null,null,null,null,null,null,null,null,null,null,0]
[19,null,null,null,null,null,null,null,null,null,null,null,null,null,null,null,0]
[20,null,null,null,null,null,null,null,null,null,null,null,null,null,null,null,0]
[21,null,null,null,null,null,null,null,null,null,null,null,null,null,null,null,0]
[22,null,null,null,null,null,null,null,null,null,null,null,null,null,null,null,0]
[23,null,null,null,null,null,null,null,null,null,null,null,null,null,null,null,0]
[null,null,null,null,null,null,null,null,null,null,null,null,null,null,null,null,0]
[null,"ИТОГО, светофорных объектов",null,null,null,null,null,null,null,null,null,null,null,null,null,null,{"$f":"COUNTA(B12:B35)","v":0}]
[null,"ИТОГО, шт.",null,null,{"$f":"SUM(E12:E35)","v":0},0,0,0,0,0,0,0,0,0,0,"-",{"$f":"COUNT(B12:B34)","v":0}]
[null,"ИТОГО, тыс.руб.",null,null,{"$f":"E37*E9","v":0},0,0,0,0,0,0,0,0,0,0,"-",{"$f":"SUM(Q12:Q35)","v":0}]
["2. Организации-балансодержатели светофорных объектов (заполнение обязательно):"]
["Номер","Наименование",null,"Юридический адрес",null,null,"Почтовый адрес",null,null,"Должность руководителя",null,null,"Ф.И.О. руководителя",null,"Телефон, факс",null,"Адрес электронной почты"]
[1]
[]
[]
[]
[2]
[]
[]
[]
[3]
[]
[]
[]
[4]
[]
[]
[]
[5]
[]
[]
[]
["Справки о балансодержателях светофорных объектов которые будут принимать на баланс затраты на имущество прилагаются к бюджетной заявке"]
["3. Организации, которые по договору с ФКУ «Дирекция Программы ПБДД» на безвозмездной основе будут осуществлять технический надзор (заполнение обязательно):"]
["Номер","Наименование",null,"Юридический адрес",null,null,"Почтовый адрес",null,null,"Должность руководителя",null,null,"Ф.И.О. руководителя",null,"Телефон, факс",null,"Адрес электронной почты"]
[1]
[]
[]
[]
[2]
[]
[]
[]
[3]
[]
[]
[]
[4]
[]
[]
[]
[5]
[]
[]
[]
[]
[]
[]
[]
["1 Указать место (адрес) светофорного объекта в виде пересечения двух улиц или иных ориентиров с указанием населенного пункта."]
["2 Копии официальных коммерческих предложений и сметного расчета на монтаж должны прилагаться к бюджетной заявке."]
["3 Указывается номер организации в соответствии с разделом 2."]
["4 Указывается номер организации в соответствии с разделом 3."]
[]
[]
[]
["(Должность)",null,null,null,null,null,null,null,null,null,null,"(подпись)",null,null,null,null,null,"(инициалы, фамилия)"]
[]
[]
["(должность составителя заявки)",null,null,null,null,null,null,null,null,null,null,"(подпись)",null,null,null,null,null,"(инициалы, фамилия)"]
[]
["«____» __________________ 20___ года"]
[null,null,null,null,null,null,null,null,null,null,null,"(контактный телефон)",null,null,null,null,null,"(электронная почта)"]

{"sheet":"Субъекты","index":9,"n_rows":87,"n_cols":10,"rows_kept":87,"cut":false,"hidden":true,"merged":[]}
["№ по Конституции","Наименование субъекта РФ"]
["Нет","Наименование субъекта РФ",null,null,null,null,"1А",null,null,"Грунт + эмаль"]
[1,"Республика Адыгея (Адыгея) ",null,null,null,null,"1Б",null,null,"Горячее цинкование"]
[2,"Республика Алтай ",null,null,null,null,"2А"]
[3,"Республика Башкортостан ",null,null,null,null,"2Б"]
[4,"Республика Бурятия ",null,null,null,null,"3А",null,null,"Стационарный"]
[5,"Республика Дагестан ",null,null,null,null,"3Б",null,null,"Передвижной"]
[6,"Республика Ингушетия",null,null,null,null,"4А"]
[7,"Кабардино-Балкарская Республика ",null,null,null,null,"4Б"]
[8,"Республика Калмыкия ",null,null,null,null,"5А"]
[9,"Карачаево-Черкесская Республика ",null,null,null,null,"5Б"]
[10,"Республика Карелия ",null,null,null,null,"6А"]
[11,"Республика Коми ",null,null,null,null,"6Б"]
[12,"Республика Крым",null,null,null,null,"7А"]
[13,"Республика Марий Эл ",null,null,null,null,"7Б"]
[14,"Республика Мордовия ",null,null,null,null,"7В"]
[15,"Республика Саха (Якутия) ",null,null,null,null,"8А"]
[16,"Республика Северная Осетия - Алания ",null,null,null,null,"8Б"]
[17,"Республика Татарстан (Татарстан) ",null,null,null,null,"8В"]
[18,"Республика Тыва "]
[19,"Удмуртская Республика "]
[20,"Республика Хакасия "]
[21,"Чеченская Республика "]
[22,"Чувашская Республика - Чувашия",null,null,null,null,"Да"]
[23,"Алтайский край ",null,null,null,null,"Нет"]
[24,"Забайкальский край "]
[25,"Камчатский край "]
[26,"Краснодарский край "]
[27,"Красноярский край "]
[28,"Пермский край "]
[29,"Приморский край "]
[30,"Ставропольский край "]
[31,"Хабаровский край"]
[32,"Амурская область "]
[33,"Архангельская область "]
[34,"Астраханская область "]
[35,"Белгородская область "]
[36,"Брянская область "]
[37,"Владимирская область "]
[38,"Волгоградская область "]
[39,"Вологодская область "]
[40,"Воронежская область "]
[41,"Ивановская область "]
[42,"Иркутская область "]
[43,"Калининградская область "]
[44,"Калужская область "]
[45,"Кемеровская область "]
[46,"Кировская область "]
[47,"Костромская область "]
[48,"Курганская область "]
[49,"Курская область "]
[50,"Ленинградская область "]
[51,"Липецкая область "]
[52,"Магаданская область "]
[53,"Московская область "]
[54,"Мурманская область "]
[55,"Нижегородская область "]
[56,"Новгородская область "]
[57,"Новосибирская область "]
[58,"Омская область "]
[59,"Оренбургская область "]
[60,"Орловская область "]
[61,"Пензенская область "]
[62,"Псковская область "]
[63,"Ростовская область "]
[64,"Рязанская область "]
[65,"Самарская область "]
[66,"Саратовская область "]
[67,"Сахалинская область "]
[68,"Свердловская область "]
[69,"Смоленская область "]
[70,"Тамбовская область "]
[71,"Тверская область "]
[72,"Томская область "]
[73,"Тульская область "]
[74,"Тюменская область "]
[75,"Ульяновская область "]
[76,"Челябинская область "]
[77,"Ярославская область"]
[78,"город Москва "]
[79,"город Санкт-Петербург"]
[80,"город Севастополь"]
[81,"Еврейская автономная область"]
[82,"Ненецкий автономный округ "]
[83,"Ханты-Мансийский автономный округ - Югра "]
[84,"Чукотский автономный округ "]
[85,"Ямало-Ненецкий автономный округ"]